Cogmind - Beta 10.2 @@@ ROGUE MODE // 2021.10.14 @ 18:43:47 Player: Zen0110 Result: Destroyed by G-34 Mercenary with Small Laser Performance ------------- Evolutions (0) 0 Regions Visited (1) 200 Robots Destroyed (12) 60 Value Destroyed (240) 240 Prototype IDs (0) 0 Alien Tech Used (0) 0 Bonus (0) 0 TOTAL SCORE: 500 Bonus ------- None Cogmind --------- Core Integrity 0/250 Matter 295/300 Energy 83/100 System Corruption 3% Temperature Cool (6) Movement Core (50) Location -10/Materials Parts ------- > --- POWER (1) -------- (None) > --- PROPULSION (2) --- (None) > --- UTILITY (2) ------ Signal Interpreter > --- WEAPON (2) ------- Small Laser > --- INVENTORY (4) ---- Aluminum Leg Wheel Peak State ------------ > --- POWER ------------ Light Ion Engine > --- PROPULSION ------- Wheel Wheel > --- UTILITY ---------- Heat Sink Signal Interpreter > --- WEAPON ----------- Assault Rifle Light Assault Rifle > --- INVENTORY -------- Aluminum Leg Aluminum Leg Sensor Array [Rating: 7] Favorites ----------- Power Light Ion Engine Engine Light Ion Engine Propulsion Wheel Leg Aluminum Leg Wheel Wheel Utility Signal Interpreter Device Heat Sink Processor Signal Interpreter Weapon Light Assault Rifle Energy Gun Small Laser Ballistic Gun Light Assault Rifle Build | -11 -10 ------- Run | Scr Mat Slots Evolved . | . . Power . | . . Propulsion . | . . Utility . | . . Weapon . | . . Parts Attached 19 | 12 7 Power 2 | 1 1 Engine 2 | 1 1 Core . | . . Reactor . | . . Propulsion 9 | 8 1 Treads . | . . Leg 4 | 3 1 Wheel 5 | 5 . Hover . | . . Flight . | . . Utility 5 | 1 4 Device 4 | 1 3 Storage . | . . Processor 1 | . 1 Hackware . | . . Protection . | . . Artifact . | . . Weapon 3 | 2 1 Energy Gun 1 | . 1 Energy Cannon . | . . Ballistic Gun 2 | 2 . Ballistic Cannon . | . . Launcher . | . . Special Weapon . | . . Impact Weapon . | . . Slashing Weapon . | . . Piercing Weapon . | . . Special Melee Weapon . | . . Unidentified Prototypes . | . . Parts Lost 9 | . 9 Power 2 | . 2 Propulsion 2 | . 2 Utility 3 | . 3 Weapon 2 | . 2 Highest Loss Streak 5 | . 5 Average Slot Usage (%) 72 | . 72 Engine 10 | . 10 Leg 5 | . 5 Wheel 15 | . 15 Device 13 | . 13 Processor 11 | . 11 Ballistic Gun 15 | . 15 Naked Turns . | . . Heaviest Build 7 | 7 7 Greatest Support 20 | 20 20 Greatest Overweight (x) . | . . Average Overweight (x) . | . . Largest Inventory Capacity 4 | 4 4 Average Capacity 4 | 4 4 Most Carried 4 | 4 4 Average Carried 2 | 2 2 Final Capacity 4 | 4 4 Final Carried 2 | 2 2 Class Distribution -------------------- 100% | Mutant Dominant Class ---------------- Mutant | -10/Materials Resources | -11 -10 ----------- Run | Scr Mat Matter Collected 446 | 242 204 Remotely . | . . Salvage Created 311 | 32 279 Parts 26 | 3 23 Haulers Intercepted . | . . Recyclers Shooed . | . . Parts Field Recycled . | . . Retrieved Matter . | . . Parts Self-Destructed . | . . Prevented . | . . Kills | -11 -10 ------- Run | Scr Mat Combat Hostiles Destroyed 10 | 1 9 Melee 2 | . 2 Guns 8 | 1 7 Classes Destroyed 4 | 1 3 Builder 1 | . 1 Watcher 1 | . 1 Swarmer 6 | . 6 Grunt 4 | 1 3 Best Kill Streak 7 | 1 7 Combat Bots Only 7 | 1 7 Max Kills in Single Turn 2 | 1 2 Gunslinging 1 | . 1 Exploded . | . . Melee 1 | . 1 Uniques/NPCs Destroyed . | . . Combat | -11 -10 -------- Run | Scr Mat Damage Taken 813 | 10 803 Core 251 | . 251 Absorbed by Shields . | . . Core Remaining (%) 100 | 100 . Volleys Fired 36 | 2 34 Largest 2 | 2 2 Hottest 40 | 40 40 Shots Fired 60 | 4 56 Gun 60 | 4 56 Cannon . | . . Launcher . | . . Special . | . . Kinetic 53 | 4 49 Thermal 7 | . 7 Explosive . | . . Electromagnetic . | . . Robot Hit Streak 10 | 2 10 Robot Miss Streak 2 | 1 2 Penetration Max . | . . Secondary Targets 3 | . 3 Max Gunslinging Chain 1 | . 1 Shots Hit Robots 42 | 2 40 Core Hits 26 | 2 24 Critical Hits . | . . Critical Kills . | . . Critical Parts Destroyed . | . . Melee Attacks . | . . Impact . | . . Slashing . | . . Piercing . | . . Sneak Attacks . | . . Combat Hostiles . | . . Follow-up Attacks . | . . Damage Inflicted 407 | 21 386 Guns 366 | 21 345 Cannons . | . . Explosions . | . . Melee . | . . Ramming 41 | . 41 Kinetic 301 | 21 280 Thermal 65 | . 65 Explosive . | . . Electromagnetic . | . . Impact . | . . Slashing . | . . Piercing . | . . Highest Corruption 3 | . 3 Average Corruption 2 | . 2 Corruption Purged . | . . Effects 1 | . 1 Data Loss (minor) 1 | . 1 Overload Shots . | . . Overflow Damage . | . . Projectiles . | . . Explosions . | . . Melee . | . . Knockbacks 1 | . 1 Impact 1 | . 1 Kinetic . | . . Secondary . | . . Self-Inflicted Damage 13 | . 13 Shots . | . . Rammed 22 | . 22 Targets Rammed 26 | . 26 Kicked 4 | . 4 Crushed . | . . Highest Temperature 6 | 6 4 Average Temperature 1 | 6 1 Received Heat Transfer 270 | 6 264 Siege Activations . | . . Robots Corrupted . | . . Combat Hostiles . | . . Parts Fried . | . . Impact Corruptions . | . . Robots Melted . | . . Combat Hostiles . | . . Parts Melted . | . . Heat Transferred 150 | . 150 Parts Sabotaged . | . . Parts Stolen . | . . Parts Stripped . | . . Power Chain Reactions . | . . Missiles Intercepted . | . . Alert | -11 -10 ------- Run | Scr Mat Peak Influence 240 | 20 240 Initial 13 | . 13 Average 117 | 2 151 Maximum Alert Level 1 | . 1 Low Security (%) 59 | 100 47 Level 1 40 | . 52 Level 2 . | . . Level 3 . | . . Level 4 . | . . Level 5 . | . . High Security . | . . Max Security . | . . Squads Dispatched 1 | . 1 Investigation . | . . Extermination . | . . Reinforcement 1 | . 1 Assault . | . . Garrison . | . . Intercept . | . . Construction Impeded . | . . Haulers Reinforced . | . . Stealth | -11 -10 --------- Run | Scr Mat Distress Signals 1 | . 1 Communications Jammed . | . . Distress Signals . | . . Times Spotted 16 | 1 15 Peak Tracking Total 11 | 1 11 Tactical Retreats . | . . Traps | -11 -10 ------- Run | Scr Mat Traps Triggered . | . . Indirectly . | . . Trap Hack Attempts . | . . Triggered . | . . Disarmed . | . . Reprogrammed . | . . Reused . | . . Traps Extracted . | . . Installed . | . . Triggered . | . . Machines | -11 -10 ---------- Run | Scr Mat Machines Disabled 1 | . 1 Max in Single Turn 1 | . 1 Machines Sabotaged . | . . Garrisons Compromised . | . . Overloaded Fab Kills . | . . Fab Network Shutdowns . | . . Hacking | -11 -10 --------- Run | Scr Mat Machines Accessed 1 | . 1 Terminals . | . . Fabricators . | . . Repair Stations . | . . Recycling Units 1 | . 1 Scanalyzers . | . . Garrison Access . | . . Total Hacks 2 | . 2 Successful . | . . Failed 2 | . 2 Catastrophic . | . . Database Lockouts . | . . Manual 3 | . 3 Terminals . | . . Fabricators . | . . Repair Stations . | . . Recycling Units 2 | . 2 Scanalyzers . | . . Garrison Access . | . . Terminal Hacks . | . . Fabricator Hacks . | . . Repair Station Hacks . | . . Recycling Unit Hacks . | . . Scanalyzer . | . . Garrison Access Hacks . | . . Unauthorized Hacks . | . . Terminals . | . . Fabricators . | . . Repair Stations . | . . Recycling Units . | . . Scanalyzers . | . . Garrison Access . | . . Data Cores Recovered . | . . Used . | . . Hacking Detections 1 | . 1 Full Trace Events . | . . Feedback Events . | . . Feedback Blocked . | . . Robot Schematics Acquired . | . . Robots Built . | . . Matter . | . . Time . | . . Total Robot Build Rating . | . . Part Schematics Acquired . | . . Parts Built . | . . Matter . | . . Time . | . . Total Part Build Rating . | . . Parts Repaired . | . . Time . | . . Parts Recycled . | . . Recycled Matter . | . . Retrieved Matter . | . . Retrieved Components . | . . Parts Scanalyzed . | . . Part Schematics Acquired . | . . Parts Damaged . | . . Bothacking | -11 -10 ------------ Run | Scr Mat Used RIF Installer . | . . Robots Hacked . | . . Non-combat . | . . Combat . | . . Robot Hacks Applied . | . . Relay Couplers Released . | . . Robots Rewired . | . . Allies Hacked . | . . Hacks Repelled . | . . Allies | -11 -10 -------- Run | Scr Mat Total Allies . | . . Largest Group . | . . Highest-Rated Group . | . . Highest-Rated Ally . | . . Total Orders . | . . Ally Attacks . | . . Total Damage . | . . Kills . | . . Allies Corrupted . | . . Allies Melted . | . . Intel | -11 -10 ------- Run | Scr Mat Robot Analysis Total . | . . Derelict Logs Recovered . | . . Drone Launches . | . . Drone Recoveries . | . . Exploration | -11 -10 ------------- Run | Scr Mat Turns Passed 338 | 76 262 Spaces Moved 209 | 68 141 Core 31 | 24 7 Treads . | . . Legs 48 | 1 47 Wheels 130 | 43 87 Hover . | . . Flight . | . . Fastest Speed 50 | 50 50 Average Speed 84 | 70 91 Slowest Speed 120 | 120 120 Overloaded Moves . | . . Propulsion Burnouts . | . . Robots Hopped . | . . Cave-ins Triggered . | . . Exploration Rate (%) 18 | 6 30 Regions Visited 1 Branch Regions . Pre-discovered Areas . | . . Known Exits Taken . | . . Unknown Exits Taken 1 | 1 . Scrap Searched . | . . Spaces Dug . | . . Terrain Destroyed . | . . Melee . | . . Projectile . | . . AOE . | . . Terrain Rammed . | . . Walls Destroyed . | . . Machines Disabled . | . . Actions | -11 -10 --------- Run | Scr Mat Total 314 | 95 219 Wait 4 | . 4 Move 208 | 67 141 Hop . | . . Pick Up 13 | 8 5 Fast Attach . | . . Attach 19 | 12 7 Detach 8 | 6 2 Swap . | . . Drop . | . . Fire 36 | 2 34 Melee . | . . Ram 3 | . 3 Kick 23 | . 23 Crush . | . . Escape Stasis . | . . Rewire . | . . Trap . | . . Miscellaneous . | . . Route ------- -11/Scrapyard -10/Materials History --------- Turn | Location | Event 2 | -11/Scrapyard | Met Revision 17 59 | -11/Scrapyard | Discovered new exit (range 8) 77 | -11/Scrapyard | Entered Materials 243 | -10/Materials | Core integrity fell below 50% 248 | -10/Materials | Destroyed 7 combat bots 257 | -10/Materials | Lost 5 parts (1p1n1u2w) 308 | -10/Materials | Build established: Mutant 311 | -10/Materials | Core integrity fell below 20% 339 | -10/Materials | Destroyed by G-34 Mercenary with Small Laser Last Messages --------------- 00312_ Lgt. Ion Engine destroyed. 00312_ Slammed into G-34 Mercenary. 00313_ R-06 Scavenger inserts Lgt. Assault Rifle into recycling unit. 00313_ Slammed into G-34 Mercenary. 00314_ Aluminum Leg destroyed. 00315_ Slammed into G-34 Mercenary. 00316_ G-34 Mercenary destroyed. 00316_ Heat Sink destroyed. 00316_ System corrupted by crushing effect (+2). 00316_ R-06 Scavenger collects Ion Engine. 00318_ Acquired Heat Sink. 00319_ R-06 Scavenger inserts Ion Engine into recycling unit. 00320_ Acquired 10 matter. 00321_ Slammed into G-34 Mercenary. 00321_ R-06 Scavenger collects Aluminum Leg. 00323_ Acquired Sml. Laser. 00325_ R-06 Scavenger inserts Aluminum Leg into recycling unit. 00335_ Heat Sink destroyed. 00337_ System corrupted: Component data lost. [Achievement: First Step to Greatness] Map ----- +----------------------------------------------------+ | ????? # " " | | ????# # """"" | | ????# # """"" | | ????############### """"" | | ????????# """ | | ????????# ######### | | ????????# #???????# | | ????????# #???????################ | | ????????# #???????# #???????? | | ??#######+###?????# """ #????????? | | ??# ####### """ #?????????? | | ??# """ # # """ #??????????? | | ??# """"" # # """ #??????????? | | ??# """"" + + """ #??????????? | | ??# """"" # # #??????????? | | ??# """ # # #??????????? | | ??# ## #########??????????? | | ??# ## # #??????????? | | ??############ + #??????????? | | ????# """ # # #??????????? | | ????# "Y"%# # #??????????? | | ????# " "%#%% + #??????????? | | ????# % %r#%%%# #??????????? | | ????# %%g/%%%# #??????????? | | ????# """""%#%%%# #??????????? | | ????# """""@#%%%# #??????????? | | ????# """"" ##### #??????????? | | ????# #???# #??????????? | | ????##########???#########??????????? | | ????????????????????????????????????? | | ????????????????????????????????????? | | ????????????????????????????????????? | | ????????????????????????????????????? | | ????????????????????????????????????? | | ????????????????????????????????????? | | | | | | | | | | | | | | | | | | | | | | | | | | | | | | | +----------------------------------------------------+ Best States ------------- Heat Dissipation 35 Energy Generation 10 Energy Capacity 125 Matter Stores 300 Matter Capacity 300 Sight Range 16 Robot Scan Range 10 Terrain Scan Density 10 Evasion (%) 50 Item Schematics ----------------- None Robot Schematics ------------------ None Fabricated ------------ Nothing Alien Tech Used ----------------- None Achievements -------------- Crack Shot First Step to Greatness Fist Fight Uninvited Guest Challenges ------------ None Game ------ Seed AccelerationSniperWand Manual? 0 Play Time 00:16:13 Cumulative 0.5 hours Start 2021.10.14 @ 18:22:30 End 2021.10.14 @ 18:43:47 Sessions 1 Manual Loads 0 Difficulty Rogue Special Mode None Game No. 1 Rogue 1 Adventurer 0 Explorer 0 Win Type - Total 0 Types 0/0/0/0/0/0/0/0/0 Lore% 0 Gallery% 1 Achievement% 1 Wizard Run 0 Options --------- ASCII 0 Keyboard 1 Movement Numpad Keybinds 0 Fullscreen 1 Font 18/SmallcapsGlow Map View 76x50 Tactical HUD 1 Map Filters NONE Filters NONE Steam 1 RUN: 63a9802d-2d98-4c2f-9476-a95fd4942ce7